fUST/lending_fUST_20260424
["ID","MTS","AMOUNT","RATE_DAILY","PERIOD"]
[421078898,1776987039978,-531.25602999,0.00018595,2]
[421078899,1776987039991,-531.25602999,0.00018595,2]
[421078900,1776987040005,-531.25602999,0.00018595,2]
[421078901,1776987040017,-531.25602999,0.00018595,2]
[421078902,1776987040029,-531.25602999,0.00018595,2]
[421078903,1776987040041,-531.25602999,0.00018595,2]
[421078904,1776987040054,-531.25602999,0.00018595,2]
[421078905,1776987040066,-531.25602999,0.00018595,2]
[421078906,1776987040080,-531.25602999,0.00018595,2]
[421078907,1776987040093,-531.25602999,0.00018595,2]
[421078908,1776987040106,-531.25602999,0.00018595,2]
[421078909,1776987040119,-531.25602999,0.00018595,2]
[421078910,1776987040133,-531.25602999,0.00018595,2]
[421078911,1776987040146,-531.25602999,0.00018595,2]
[421078912,1776987040157,-531.25602999,0.00018595,2]
[421078913,1776987040169,-531.25602999,0.00018595,2]
[421078914,1776987040183,-531.25602999,0.00018595,2]
[421078915,1776987040197,-531.25602999,0.00018595,2]
[421078916,1776987040210,-531.25602999,0.00018595,2]
[421078917,1776987040224,-548.96456433,0.00018595,2]
[421078918,1776987040236,-548.96456433,0.00018595,2]
[421078919,1776987040248,-548.96456433,0.00018595,2]
[421078920,1776987040260,-548.96456433,0.00018595,2]
[421078921,1776987040272,-548.96456433,0.00018595,2]
[421078922,1776987040284,-548.96456433,0.00018595,2]
[421078923,1776987040298,-548.96456433,0.00018595,2]
[421078924,1776987040314,-548.96456433,0.00018595,2]
[421078925,1776987040327,-548.96456433,0.00018595,2]
[421078926,1776987040340,-487.0,0.00018595,2]
[421078927,1776987040353,-487.0,0.00018595,2]
[421078928,1776987040365,-487.0,0.00018595,2]
[421078929,1776987040379,-487.0,0.00018595,2]
[421078930,1776987040391,-487.0,0.00018595,2]
[421078931,1776987040404,-487.0,0.00018595,2]
[421078932,1776987040417,-487.0,0.00018595,2]
[421078933,1776987040431,-487.0,0.00018595,2]
[421078934,1776987040444,-487.0,0.00018595,2]
[421078935,1776987040457,-487.0,0.00018595,2]
[421078936,1776987040469,-487.0,0.00018595,2]
[421078937,1776987040482,-487.0,0.00018595,2]
[421078938,1776987040496,-487.0,0.00018595,2]
[421078939,1776987040509,-487.0,0.00018595,2]
[421078940,1776987040522,-487.0,0.00018595,2]
[421078941,1776987040535,-487.0,0.00018595,2]
[421078942,1776987040549,-487.0,0.00018595,2]
[421078943,1776987040562,-487.0,0.00018595,2]
[421078944,1776987040575,-487.0,0.00018595,2]
[421078945,1776987040587,-553.69,0.00018595,2]
[421078946,1776987040600,-1612.97,0.00018596,2]
[421078947,1776987040613,-1612.97,0.00018596,2]
[421078948,1776987040626,-1612.97,0.00018596,2]
[421078949,1776987040638,-1612.97,0.00018596,2]
[421078950,1776987040649,-1612.97,0.00018596,2]
[421078951,1776987040662,-1612.97,0.00018596,2]
[421078952,1776987040674,-1612.97,0.00018596,2]
[421078953,1776987040686,-1612.97,0.00018596,2]
[421078954,1776987040698,-1612.97,0.00018596,2]
[421078955,1776987040710,-1612.97,0.00018596,2]
[421078956,1776987040722,-1612.97,0.00018596,2]
[421078957,1776987040733,-1612.97,0.00018596,2]
[421078958,1776987040746,-1612.97,0.00018596,2]
[421078959,1776987040757,-1612.97,0.00018596,2]
[421078960,1776987040770,-1612.97,0.00018596,2]
[421078961,1776987040782,-1612.97,0.00018596,2]
[421078962,1776987040794,-1612.97,0.00018596,2]
[421078963,1776987040808,-1612.97,0.00018596,2]
[421078964,1776987040820,-1612.97,0.00018596,2]
[421078965,1776987040833,-1612.97,0.00018596,2]
[421078966,1776987040846,-1613.11663225,0.00018596,2]
[421078968,1776987040858,-151.0,0.000186,2]
[421078969,1776987040870,-151.0,0.000186,2]
[421078970,1776987040881,-151.0,0.000186,2]
[421078971,1776987040894,-151.0,0.000186,2]
[421078972,1776987040906,-151.0,0.000186,2]
[421078973,1776987040918,-666.0,0.00018695,2]
[421078974,1776987040931,-555.0,0.00018695,2]
[421078975,1776987040943,-444.0,0.00018695,2]
[421078976,1776987040955,-999.0,0.00018695,2]
[421078977,1776987040968,-455.0,0.00018695,2]
[421078978,1776987040981,-5000.0,0.00018695,2]
[421078979,1776987040993,-777.0,0.00018696,2]
[421078980,1776987041006,-888.0,0.00018719,2]
[421078981,1776987041020,-999.0,0.00018719,2]
[421078982,1776987041032,-537.6845,0.00018723,2]
[421078983,1776987041044,-445.202766,0.00018723,2]
[421078984,1776987041057,-2150.738,0.00018723,2]
[421078985,1776987041069,-557.5788265,0.00018778,2]
[421078986,1776987041083,-645.0,0.00018795,2]
[421078987,1776987041097,-1409.0,0.00018795,2]
[421078988,1776987041110,-2263.829,0.00018795,2]
[421078989,1776987041124,-184.0,0.00018795,2]
[421078990,1776987041137,-441.0,0.00018795,2]
[421078991,1776987041148,-488.5090812,0.00018796,2]
[421078992,1776987041160,-578.20924308,0.00018833,2]
[421078993,1776987041172,-599.60298507,0.00018888,2]
[421078994,1776987041184,-621.78829552,0.00018943,2]
[421078995,1776987041196,-160.0,0.00018957,2]
[421078996,1776987041208,-160.0,0.00018957,2]
[421078997,1776987041220,-644.79446246,0.00018998,2]
[421078998,1776987041233,-13589.53965687,0.00019,2]
[421078999,1776987041245,-155.0,0.00019,2]
[421079000,1776987041257,-213.0,0.00019,2]
[421079001,1776987041270,-392.0,0.00019,2]
[421079002,1776987041282,-248.0,0.00019,2]
[421079003,1776987041295,-157.0,0.00019,2]
[421079004,1776987041307,-2447.0,0.00019,2]
[421079005,1776987041320,-668.65185757,0.00019053,2]
[421079006,1776987041332,-500.0,0.00019098,2]
[421079007,1776987041345,-693.3919763,0.00019108,2]
[421079008,1776987041358,-719.04747942,0.00019163,2]
[421079009,1776987041371,-300.0,0.00019178,2]
[421079010,1776987041383,-1191.0,0.00019178,2]
[421079011,1776987041395,-745.65223616,0.00019218,2]
[421079012,1776987041408,-2230.315306,0.00019271,2]
[421079013,1776987041420,-773.2413689,0.00019273,2]
[421079014,1776987041433,-455.80029,0.00019573,2]
[421079015,1776987041445,-286.153053,0.00019573,2]
[421079016,1776987041458,-325.3967881,0.00019573,2]
[421079017,1776987041471,-1191.0,0.00019726,2]
[421079018,1776987041483,-864.0,0.00019772,2]
[421079019,1776987041496,-2312.83697232,0.00019819,2]
[421079020,1776987041508,-500.0,0.0001982,2]
[421079021,1776987041524,-500.0,0.0001984,2]
[421079022,1776987041545,-231.0,0.0001985,2]
[421079023,1776987041560,-7805.0,0.00019873,2]
[421079024,1776987041573,-229.83432848,0.00019909,2]
[421079025,1776987041585,-250.01,0.00019912,6]
[421079026,1776987041967,-156.0,0.00019951,2]
[421079027,1776987041990,-265.89094094,0.00019973,2]
[421079028,1776987042010,-500.0,0.00019973,2]
[421079029,1776987042020,-500.0,0.00019973,2]
[421079030,1776987042030,-500.0,0.00019973,2]
[421079031,1776987042040,-500.0,0.00019973,2]
[421079032,1776987042050,-504.47604606,0.00019973,2]
[421079033,1776987042061,-502.69739404,0.00019973,2]
[421079034,1776987042071,-310.58964247,0.00019973,2]
[421079035,1776987042080,-477.301,0.00019973,2]
[421079036,1776987042089,-155.0,0.00019999,2]
[421079037,1776987042098,-34088.68826281,0.0002,2]
[421079038,1776987042108,-301018.3588764,0.0002,2]
[421079039,1776987042118,-9413.74378877,0.0002,2]
[421079040,1776987042127,-337.0,0.0002,2]
[421079041,1776987042136,-155.0,0.0002,2]
[421079042,1776987042145,-213.0,0.0002,2]
[421079043,1776987042155,-392.0,0.0002,2]
[421079044,1776987042164,-248.0,0.0002,2]
[421079045,1776987042174,-300.0,0.0002,4]
[421079046,1776987042185,-2447.0,0.0002,2]
[421079047,1776987042196,-748.0,0.00020048,2]
[421079048,1776987042205,-169.5,0.00020095,2]
[421079049,1776987042215,-504.93426169,0.00020112,120]
[421079050,1776987042225,-349.66805222,0.00020151,2]
[421079051,1776987042235,-1191.0,0.00020274,2]
[421079052,1776987042245,-2398.4119403,0.00020367,2]
[421079053,1776987042255,-164.79255895,0.00020401,120]
[421079054,1776987042266,-504.93426169,0.00020401,120]
[421079055,1776987042277,-500.0,0.00020521,2]
[421079056,1776987042286,-1000.0,0.00020521,2]
[421079057,1776987042296,-1000.0,0.00020521,2]
[421079058,1776987042305,-196.42,0.00020822,2]
[421079059,1776987042315,-261.0,0.00020849,3]
[421079060,1776987042325,-2487.15318209,0.00020915,2]
[421079061,1776987042334,-702.898,0.00020938,2]
[421079062,1776987042344,-160.0,0.00020946,2]
[421079063,1776987042355,-978.156328,0.00020946,2]
[421079064,1776987042365,-1796.312656,0.00020946,2]
[421079065,1776987042375,-160.0,0.00020946,2]
[421079066,1776987042385,-2915.666412,0.00020946,2]
[421079067,1776987042395,-5671.332825,0.00020946,2]
[421079068,1776987042407,-253.523408,0.00020946,7]
[421079069,1776987042418,-300.0,0.00021,2]
[421079070,1776987042428,-150.0,0.00021,2]
[421079071,1776987042438,-337.0,0.00021,2]
[421079072,1776987042449,-155.0,0.00021,2]
[421079073,1776987042458,-213.0,0.00021,2]
[421079074,1776987042468,-392.0,0.00021,2]
[421079075,1776987042478,-248.0,0.00021,2]
[421079076,1776987042487,-2447.0,0.00021,2]
[421079077,1776987042497,-1500.0,0.00021068,2]
[421079078,1776987042506,-839.66395829,0.00021068,2]
[421079079,1776987042516,-325.344761,0.00021244,2]
[421079080,1776987042526,-325.3967881,0.00021244,2]
[421079081,1776987042535,-455.8385479,0.00021252,2]
[421079082,1776987042545,-32062.12730733,0.00021273,3]
[421079083,1776987042554,-1310.66,0.0002137,2]
[421079084,1776987042564,-500.0,0.00021373,2]
[421079085,1776987042573,-500.0,0.00021373,2]
[421079086,1776987042583,-573.15712534,0.00021373,2]
[421079087,1776987042592,-500.0,0.00021373,2]
[421079088,1776987042602,-500.0,0.00021373,2]
[421079089,1776987042611,-500.0,0.00021373,2]
[421079090,1776987042620,-500.0,0.00021373,2]
[421079091,1776987042629,-500.0,0.00021373,2]
[421079092,1776987042638,-500.0,0.00021373,2]
[421079093,1776987042647,-196.6192948,0.00021373,2]
[421079094,1776987042657,-500.0,0.00021373,2]
[421079095,1776987042666,-500.0,0.00021373,2]
[421079096,1776987042675,-227.12588365,0.00021373,2]
[421079097,1776987042684,-300.16976068,0.00021373,2]
[421079098,1776987042694,-500.0,0.00021373,2]
[421079099,1776987042704,-500.0,0.00021373,2]
[421079100,1776987042714,-283.31415785,0.00021373,2]
[421079101,1776987042724,-500.0,0.00021373,2]
[421079102,1776987042733,-344058.80597854,0.00021373,2]
[421079103,1776987042745,-1505.434374,0.00021373,2]
[421079104,1776987042754,-2579.17784983,0.00021463,2]
[421079105,1776987042765,-2000.0,0.00021616,2]
[421079106,1776987042775,-1000.0,0.00021749,10]
[421079107,1776987042784,-163.082,0.00021795,2]
[421079108,1776987042795,-2210.0,0.00021795,2]
[421079109,1776987042805,-184.0,0.00021795,2]
[421079110,1776987042816,-441.0,0.00021795,2]
[421079111,1776987042825,-214.0,0.0002184,2]
[421079112,1776987042835,-258.0,0.0002185,2]
[421079113,1776987042844,-172.1360382,0.00021918,7]
[421079114,1776987042853,-296.31563247,0.00021918,7]
[421079115,1776987042862,-218.86369115,0.00021918,2]
[421079116,1776987042872,-1000.0,0.00021921,2]
[421079117,1776987042882,-1000.0,0.00021921,2]
[421079118,1776987042891,-1000.0,0.00021921,2]
[421079119,1776987042901,-1061.74410891,0.00021921,2]
[421079120,1776987042910,-1000.0,0.00021921,2]
[421079121,1776987042921,-1000.0,0.00021921,2]
[421079122,1776987042930,-1000.0,0.00021921,2]
[421079123,1776987042939,-1000.0,0.00021921,2]
[421079124,1776987042950,-778.53709828,0.00021921,2]
[421079125,1776987042960,-1000.0,0.00021921,2]
[421079126,1776987042969,-1000.0,0.00021921,2]
[421079127,1776987042980,-173.02553931,0.00021973,2]
[421079128,1776987042990,-500.0,0.00021973,2]
[421079129,1776987043002,-500.0,0.00021973,2]
[421079130,1776987043011,-500.0,0.00021973,2]
[421079131,1776987043020,-150.0,0.00021973,2]
[421079132,1776987043030,-501.54098629,0.00021973,2]
[421079133,1776987043039,-477.89391649,0.00021973,2]
[421079134,1776987043048,-500.0,0.00021973,2]
[421079135,1776987043058,-500.0,0.00021973,2]
[421079136,1776987043067,-500.0,0.00021973,2]
[421079137,1776987043076,-150.0,0.00021973,2]
[421079138,1776987043085,-500.0,0.00021973,2]
[421079139,1776987043094,-500.0,0.00021973,2]
[421079140,1776987043104,-500.0,0.00021973,2]
[421079141,1776987043113,-500.0,0.00021973,2]
[421079142,1776987043122,-500.0,0.00021973,2]
[421079143,1776987043132,-500.0,0.00021973,2]
[421079144,1776987043141,-500.0,0.00021973,2]
[421079145,1776987043150,-500.0,0.00021973,2]
[421079146,1776987043159,-500.0,0.00021973,2]
[421079147,1776987043169,-500.0,0.00021973,2]
[421079148,1776987043178,-500.0,0.00021973,2]
[421079149,1776987043187,-500.0,0.00021973,2]
[421079150,1776987043196,-500.0,0.00021973,2]
[421079152,1776987043205,-459.26322142,0.00021973,2]
[421079153,1776987043214,-500.0,0.00021973,2]
[421079154,1776987043224,-262.52520794,0.00021973,2]
[421079155,1776987043233,-2000.774307,0.00021993,14]
[421079156,1776987043242,-3975.908744,0.00021993,14]
[421079157,1776987043251,-155.0,0.00021999,2]
[421079158,1776987043260,-309265.23849984,0.00022,120]
[421079159,1776987043269,-227.38,0.00022,5]
[421079160,1776987043278,-152803.47334277,0.00022,120]
[421079161,1776987043293,-1039.25452052,0.00022,120]
[421079162,1776987043304,-1187.68431729,0.00022,120]
[421079175,1776987044009,-634.0,0.00014908,2]
[421079176,1776987044019,-366.0,0.00022,120]
[421079184,1776987047437,-621.35024466,0.00022,120]
[421079185,1776987937102,-339.38688104,0.000119,2]
[421079186,1776987937122,-464.99386022,0.000119,2]
[421079187,1776987937144,-454.8515009,0.000119,2]
[421079188,1776988006080,-171.02632281,0.00011781,2]
[421079189,1776988029078,-378.3513591,0.00011781,2]
[421079190,1776988029099,-408.21889936,0.00011781,2]
[421079191,1776988036080,-175.34307977,0.00011781,2]
[421079192,1776988039093,-2.43802087,0.00011781,2]
[421079193,1776988039116,-150.0,0.0001274,2]
[421079194,1776988039137,-1000.0,0.00013699,2]
[421079195,1776988039160,-177.0,0.0001474,2]
[421079196,1776988039182,-204.0,0.0001674,2]
[421079197,1776988039202,-997.02391396,0.000179,2]
[421079198,1776988041096,-185.69151681,0.000179,2]
[421079199,1776988048125,-1542.82569203,0.000179,2]
[421079233,1776988231876,-1000.0,0.00013699,2]
[421079235,1776988231886,-64.9588772,0.000179,2]
[421079236,1776988231895,-500.705,0.0001863,14]
[421079237,1776988231905,-231.0,0.0001874,2]
[421079238,1776988231914,-441.0,0.00018745,2]
[421079239,1776988231923,-184.0,0.00018745,2]
[421079240,1776988231932,-150.0,0.00018745,2]
[421079241,1776988231941,-10.1767104,0.000189,2]
[421079242,1776988231952,-2780.3232896,0.000189,2]
[421079243,1776988231961,-130.57563864,0.00019041,3]
[421079244,1776988231972,-31.42436136,0.00019041,3]
[421079245,1776988231981,-1200.0,0.00019899,2]
[421079246,1776988231991,-1641.92563864,0.000199,2]
[421079251,1776988239177,-1148.57436136,0.000199,2]
[421079252,1776988239186,-720.0,0.000199,2]
[421079253,1776988239195,-300.0,0.00019987,2]
[421079254,1776988239204,-300.0,0.00019987,2]
[421079255,1776988239213,-300.0,0.00019987,2]
[421079256,1776988239223,-537.6845,0.00019988,2]
[421079257,1776988239232,-2150.738,0.00019988,2]
[421079258,1776988239241,-303.0,0.0002,2]
[421079259,1776988239251,-155.0,0.0002,2]
[421079260,1776988239260,-181.0,0.0002,2]
[421079261,1776988239269,-333.0,0.0002,2]
[421079262,1776988239279,-211.0,0.0002,2]
[421079263,1776988239288,-194.0,0.0002,2]
[421079264,1776988239297,-269.8,0.0002,2]
[421079265,1776988239307,-2079.0,0.0002,2]
[421079266,1776988239316,-264.16679955,0.00020043,2]
[421079267,1776988239326,-2230.315306,0.00020536,2]
[421079268,1776988239335,-258.0,0.0002074,2]
[421079270,1776988239345,-2790.5,0.000209,2]
[421079271,1776988239354,-303.0,0.00021,2]
[421079272,1776988239364,-155.0,0.00021,2]
[421079273,1776988239373,-181.0,0.00021,2]
[421079274,1776988239383,-333.0,0.00021,2]
[421079275,1776988239392,-5051.35397319,0.00021,30]
[421079276,1776988239401,-211.0,0.00021,2]
[421079277,1776988239410,-2079.0,0.00021,2]
[421079278,1776988239419,-236.99772601,0.00021084,2]
[421079279,1776988239429,-455.8385482,0.00021238,2]
[421079280,1776988239438,-325.3724333,0.00021238,2]
[421079281,1776988239447,-325.3724333,0.00021238,2]
[421079282,1776988239457,-441.0,0.00021745,2]
[421079283,1776988239471,-184.0,0.00021745,2]
[421079284,1776988239480,-43571.45,0.00021769,10]
[421079285,1776988239490,-319.91388024,0.00021778,2]
[421079286,1776988239499,-500.0,0.00021778,2]
[421079287,1776988239509,-500.0,0.00021778,2]
[421079288,1776988239518,-500.0,0.00021778,2]
[421079289,1776988239527,-500.0,0.00021778,2]
[421079290,1776988239536,-500.0,0.00021778,2]
[421079291,1776988239546,-500.0,0.00021778,2]
[421079292,1776988239555,-124.5388904,0.00021778,2]
[421079353,1776988246424,-666.43051811,0.00020984,2]
[421079354,1776988246434,-666.43051805,0.00021543,2]
[421079355,1776988246445,-500.0,0.00021766,2]
[421079356,1776988246455,-500.0,0.00021766,2]
[421079357,1776988246464,-500.0,0.00021766,2]
[421079358,1776988246474,-500.0,0.00021766,2]
[421079359,1776988246483,-500.0,0.00021766,2]
[421079360,1776988246492,-500.0,0.00021766,2]
[421079361,1776988246502,-500.0,0.00021766,2]
[421079362,1776988246512,-500.0,0.00021766,2]
[421079363,1776988246522,-500.0,0.00021766,2]
[421079364,1776988246531,-500.0,0.00021766,2]
[421079365,1776988246542,-500.0,0.00021766,2]
[421079366,1776988246552,-500.0,0.00021766,2]
[421079367,1776988246562,-500.0,0.00021766,2]
[421079368,1776988246573,-500.0,0.00021766,2]
[421079369,1776988246582,-516.92524257,0.00021766,2]
[421079370,1776988246592,-500.0,0.00021766,2]
[421079371,1776988246602,-500.0,0.00021766,2]
[421079372,1776988246613,-500.0,0.00021766,2]
[421079373,1776988246623,-500.0,0.00021766,2]
[421079374,1776988246633,-500.0,0.00021766,2]
[421079375,1776988246643,-500.0,0.00021766,2]
[421079376,1776988246652,-411.65629959,0.00021766,2]
[421079377,1776988246662,-207.33151191,0.00021766,2]
[421079378,1776988246672,-500.0,0.00021766,2]
[421079379,1776988246681,-612.32746182,0.00021766,2]
[421079380,1776988246690,-500.0,0.00021766,2]
[421079381,1776988246699,-500.0,0.00021766,2]
[421079382,1776988246710,-500.0,0.00021766,2]
[421079383,1776988246720,-500.0,0.00021766,2]
[421079384,1776988246731,-500.0,0.00021766,2]
[421079385,1776988246740,-175.44484247,0.00021766,2]
[421079386,1776988246750,-500.0,0.00021766,2]
[421079387,1776988246759,-500.0,0.00021766,2]
[421079388,1776988246770,-375.4611096,0.00021778,2]
[421079389,1776988246780,-500.0,0.00021778,2]
[421079390,1776988246789,-500.0,0.00021778,2]
[421079391,1776988246799,-500.0,0.00021778,2]
[421079392,1776988246809,-317.93835601,0.00021778,2]
[421079393,1776988246819,-500.0,0.00021778,2]
[421079394,1776988246828,-487.48394702,0.00021778,2]
[421079402,1776989139318,-1344.25889395,0.000119,5]
[421079403,1776989139341,-150.0,0.00012337,2]
[421079404,1776989139363,-133.27449644,0.00012337,2]
[421079405,1776989231084,-300.0,0.00012774,12]
[421079406,1776989231105,-372.28760046,0.00013699,2]
[421079407,1776989242095,-627.71239954,0.00013699,2]
[421079408,1776989242120,-560.19776456,0.00013699,2]
[421079409,1776989366322,-673.73964416,0.00013699,2]
[421079422,1776989432038,-300.0,0.00013699,2]
[421079515,1776989440581,-26.26035584,0.00013699,2]
[421079516,1776989440593,-615.0,0.00013699,2]
[421079517,1776989440602,-150.0,0.00014018,2]
[421079518,1776989440611,-177.0,0.00016018,2]
[421079519,1776989440623,-1200.0,0.00017998,2]
[421079520,1776989440633,-300.0,0.00017999,2]
[421079521,1776989440643,-300.0,0.00017999,2]
[421079522,1776989440653,-300.0,0.00017999,2]
[421079523,1776989440661,-534.39504492,0.00018,2]
[421079524,1776989440672,-887.59885502,0.00018,2]
[421079576,1776989443391,-4042.89343697,0.00018,2]
[421079578,1776989443402,-1746.30266309,0.00018,2]
[421079580,1776989443412,-204.0,0.00018018,2]
[421079582,1776989443421,-184.0,0.00018144,2]
[421079584,1776989443430,-441.0,0.00018144,2]
[421079585,1776989443439,-78.53591201,0.00018745,2]
[421079586,1776989443450,-71.95808799,0.00018745,2]
[421079588,1776989443459,-150.0,0.00018745,2]
[421079589,1776989443468,-172.036,0.00018745,2]
[421079590,1776989443477,-160.0,0.00018976,2]
[421079591,1776989443486,-160.0,0.00018976,2]
[421079592,1776989443495,-382.91311978,0.00019,2]
[421079593,1776989443506,-16639.56041299,0.00019,2]
[421079594,1776989443516,-160.0,0.00019041,3]
[421079595,1776989443525,-499.82288859,0.00019635,2]
[421079596,1776989443534,-238.24226236,0.00019639,2]
[421079628,1776989446819,-152.0,0.0001759,7]
[421079629,1776989446829,-143.59873764,0.00019639,2]
[421079630,1776989446838,-420.0,0.00019639,2]
[421079631,1776989446847,-557.0,0.00019734,2]
[421079632,1776989446857,-500.0,0.00019898,2]
[421079633,1776989446867,-223.93971617,0.00019898,2]
[421079634,1776989446877,-500.0,0.00019898,2]
[421079635,1776989446886,-500.0,0.00019898,2]
[421079636,1776989446896,-500.0,0.00019898,2]
[421079637,1776989446905,-500.0,0.00019898,2]
[421079638,1776989446915,-500.0,0.00019898,2]
[421079639,1776989446924,-500.0,0.00019898,2]
[421079640,1776989446934,-500.0,0.00019898,2]
[421079641,1776989446943,-500.0,0.00019898,2]
[421079642,1776989446952,-353.79829766,0.00019898,2]
[421079643,1776989446961,-500.0,0.00019898,2]
[421079644,1776989446971,-500.0,0.00019898,2]
[421079645,1776989446980,-500.0,0.00019898,2]
[421079646,1776989446989,-500.0,0.00019898,2]
[421079647,1776989446998,-500.0,0.00019898,2]
[421079648,1776989447007,-500.0,0.00019898,2]
[421079649,1776989447018,-500.0,0.00019898,2]
[421079650,1776989447027,-192.91025905,0.00019898,2]
[421079651,1776989447036,-500.0,0.00019898,2]
[421079652,1776989447046,-500.0,0.00019898,2]
[421079653,1776989447055,-597.22025123,0.00019898,2]
[421079654,1776989447064,-500.0,0.00019898,2]
[421079655,1776989447074,-500.0,0.00019898,2]
[421079656,1776989447084,-325.91373024,0.00019898,2]
[421079657,1776989447093,-500.0,0.00019898,2]
[421079658,1776989447103,-500.0,0.00019898,2]
[421079659,1776989447112,-500.0,0.00019898,2]
[421079660,1776989447122,-500.0,0.00019898,2]
[421079661,1776989447131,-666.7256552,0.00019899,2]
[421079662,1776989447141,-95494.87867138,0.00019899,2]
[421079663,1776989447153,-2404.99956709,0.00019899,2]
[421079664,1776990205468,-311.38571959,0.00011781,2]
[421079665,1776990357134,-97.20860877,0.00011781,2]
[421079666,1776990357155,-586.0,0.00011781,2]
[421079667,1776990357175,-150.0,0.00011841,2]
[421079668,1776990357195,-566.68795847,0.000119,2]
[421079669,1776990433132,-317.54558068,0.000119,2]
[421079670,1776990433153,-311.38571959,0.000119,2]
[421079671,1776990433174,-375.07596671,0.000119,2]
[421079672,1776990446168,-199.12410907,0.000119,2]
[421079673,1776990448084,-13.79992422,0.000119,2]
[421079674,1776990448104,-1000.0,0.00013699,2]
[421079675,1776990448126,-177.0,0.00013841,2]
[421079676,1776990448147,-204.0,0.00015841,2]
[421079677,1776990448169,-37.3619748,0.00017841,2]
[421079678,1776990451084,-175.95413265,0.00017841,2]
[421079869,1776990638585,-457.62426608,0.00017741,2]
[421079871,1776990638594,-150.0,0.00017841,2]
[421079872,1776990638604,-683.0,0.00017841,2]
[421079873,1776990638613,-457.62426608,0.00017893,2]
[421079874,1776990638623,-457.62426608,0.00018044,2]
[421079875,1776990638632,-235.55008713,0.00018144,2]
[421079876,1776990638641,-1002.0,0.00018899,2]
[421079877,1776990638651,-645.0,0.000189,2]
[421079879,1776990638660,-1414.636,0.000189,2]
[421079881,1776990638670,-2209.0,0.000189,2]
[421079883,1776990638679,-441.0,0.000189,2]
[421079885,1776990638689,-184.0,0.000189,2]
[421079887,1776990638698,-4713.9975077,0.00019,2]
[421079889,1776990638707,-6673.28227892,0.00019,2]
[421079891,1776990638717,-157.0,0.00019014,3]
[421079893,1776990638726,-153.0352371,0.00019052,2]
[421079895,1776990638735,-300.0,0.00019277,2]
[421079897,1776990638745,-300.0,0.00019277,2]
[421079899,1776990638754,-300.0,0.00019277,2]
[421079901,1776990638763,-300.0,0.00019277,2]
[421079903,1776990638772,-300.0,0.00019277,2]
[421079905,1776990638781,-300.0,0.00019277,2]
[421079907,1776990638790,-300.0,0.00019277,2]
[421079909,1776990638799,-300.0,0.00019277,2]
[421079911,1776990638808,-300.0,0.00019277,2]
[421079913,1776990638818,-300.0,0.00019277,2]
[421079915,1776990638827,-300.0,0.00019277,2]
[421079917,1776990638836,-300.0,0.00019277,2]
[421079919,1776990638846,-300.0,0.00019277,2]
[421079921,1776990638857,-300.0,0.00019277,2]
[421079923,1776990638867,-300.0,0.00019277,2]
[421079925,1776990638876,-455.8385479,0.00019594,2]
[421079927,1776990638885,-156.75780131,0.00019597,2]
[421079929,1776990638895,-500.0,0.00019597,2]
[421079931,1776990638904,-500.0,0.00019597,2]
[421079934,1776990638914,-500.0,0.00019597,2]
[421079935,1776990638924,-500.0,0.00019597,2]